[Event "44th Chess Olympiad Open 2022"]
[Site "Chennai"]
[Date "2022.08.09"]
[Round "11.18"]
[White "Morovic Fernandez, Ivan"]
[Black "Kuybokarov, Temur"]
[Result "1/2-1/2"]
[ECO "D85"]
[WhiteElo "2489"]
[BlackElo "2583"]
[Annotator "RC"]
[PlyCount "104"]
[EventDate "2022.07.29"]
[EventType "team-tourn"]
[EventCountry "IND"]
[SourceTitle "playchess.com"]
[Source "ChessBase"]
[SourceQuality "1"]
[WhiteTeam "Chile"]
[BlackTeam "Australia"]
[WhiteTeamCountry "CHI"]
[BlackTeamCountry "AUS"]
[TimeControl "40/5400+30:1800+30"]

1. d4 {[%emt 0:00:07]} Nf6 {[%emt 0:00:11]} 2. c4 {[%emt 0:00:09]} g6 {[%emt 0:00:06]} 3. Nc3 {[%emt 0:01:56]} d5 {[%emt 0:00:09]} 4. Nf3 {[%emt 0:01:30]} Bg7 {[%emt 0:00:10]} 5. cxd5 {[%emt 0:08:18]} Nxd5 {[%emt 0:00:55]} 6. e4 {[%emt 0:00:15]} Nxc3 {[%emt 0:00:10]} 7. bxc3 {[%emt 0:00:06]} c5 {[%emt 0:00:09]} 8. Rb1 {[%emt 0:00:17]} O-O {[%emt 0:00:34]} 9. Be2 {[%emt 0:00:02]} cxd4 {[%emt 0:00:36]} 10. cxd4 {[%emt 0:00:06]} Qa5+ {[%emt 0:00:09]} 11. Qd2 {[%emt 0:02:09]} Qxd2+ {[%emt 0:02:10]} 12. Bxd2 {[%emt 0:00:04]} b6 {[%emt 0:14:31]} 13. O-O {[%emt 0:05:37]} e6 {[%emt 0:05:11]} 14. Rfd1 {[%emt 0:06:35]} Ba6 {[%emt 0:12:47]} 15. Bxa6 {[%emt 0:02:40]} Nxa6 {[%emt 0:00:14]} 16. a4 {[%emt 0:01:01]} Nb8 {[%emt 0:15:07]} 17. a5 {[%emt 0:32:34]} Nd7 {[%emt 0:01:14]} 18. axb6 {[%emt 0:03:28]} axb6 {[%emt 0:01:01]} 19. d5 {[%emt 0:05:04]} exd5 {[%emt 0:09:03]} 20. exd5 {[%emt 0:00:04]} Rfd8 {[%emt 0:07:37]} 21. Be3 {[%emt 0:05:25]} Nf6 {[%emt 0:02:20]} 22. d6 {[%emt 0:05:36]} Ne4 {[%emt 0:00:32]} 23. Bxb6 {[%emt 0:00:28]} Rxd6 {[%emt 0:00:15]} 24. Rxd6 {[%emt 0:00:11]} Nxd6 {[%emt 0:00:05]} 25. Rd1 {[%emt 0:01:46]} h5 {[%emt 0:02:35]} 26. h3 {[%emt 0:01:00]} Ne4 {[%emt 0:00:19]} 27. Rd8+ {[%emt 0:01:30]} Rxd8 {[%emt 0:00:08]} 28. Bxd8 {[%emt 0:00:00]} Bf8 {[%emt 0:01:07]} 29. Bb6 {[%emt 0:00:31]} f6 {[%emt 0:00:17]} 30. Be3 {[%emt 0:01:47]} Kf7 {[%emt 0:00:08]} 31. Nd2 {[%emt 0:01:18]} Nc3 {[%emt 0:00:48]} 32. Kf1 {[%emt 0:01:33]} Ke6 {[%emt 0:00:11]} 33. Bd4 {[%emt 0:01:05]} Nd5 {[%emt 0:00:07]} 34. Ne4 {[%emt 0:00:46]} Be7 {[%emt 0:00:07]} 35. Nc3 {[%emt 0:00:27]} Nf4 {[%emt 0:00:11]} 36. Be3 {[%emt 0:00:35]} Nd3 {[%emt 0:00:07]} 37. Ke2 {[%emt 0:01:57]} Ne5 {[%emt 0:00:07]} 38. Nb5 {[%emt 0:01:51]} f5 {[%emt 0:00:52]} 39. Nd4+ {[%emt 0:04:47]} Kd5 {[%emt 0:00:14]} 40. Nf3 {[%emt 0:00:05]} Nf7 {[%emt 0:00:18]} 41. h4 {[%emt 0:33:34]} Bd6 {[%emt 0:30:28]} 42. Ng5 {[%emt 0:00:00]} Ne5 {[%emt 0:00:00]} 43. Nh3 {[%emt 0:00:00]} Nf7 {[%emt 0:00:00]} 44. Bf4 {[%emt 0:00:00]} Be5 {[%emt 0:00:00]} 45. Bxe5 {[%emt 0:00:00]} Kxe5 {[%emt 0:00:00]} 46. Ke3 {[%emt 0:00:00]} Nh6 {[%emt 0:00:00]} 47. g3 {[%emt 0:00:00]} Ng4+ {[%emt 0:00:00]} 48. Ke2 {[%emt 0:00:00]} Kf6 {[%emt 0:00:00]} 49. Nf4 {[%emt 0:00:00]} Ne5 {[%emt 0:00:00]} 50. Ke3 {[%emt 0:00:00]} Ng4+ {[%emt 0:00:00]} 51. Ke2 {[%emt 0:00:00]} Ne5 {[%emt 0:00:00]} 52. Ke3 {[%emt 0:00:00]} Ng4+ {[%emt 0:00:00]} 1/2-1/2

[Event "44th Chess Olympiad Open 2022"]
[Site "Chennai"]
[Date "2022.08.09"]
[Round "11.18"]
[White "Lopez Silva, Hugo"]
[Black "Tan, Justin"]
[Result "1/2-1/2"]
[ECO "C54"]
[WhiteElo "2403"]
[BlackElo "2508"]
[Annotator "RC"]
[PlyCount "60"]
[EventDate "2022.07.29"]
[EventType "team-tourn"]
[EventCountry "IND"]
[SourceTitle "playchess.com"]
[Source "ChessBase"]
[SourceQuality "1"]
[WhiteTeam "Chile"]
[BlackTeam "Australia"]
[WhiteTeamCountry "CHI"]
[BlackTeamCountry "AUS"]
[TimeControl "40/5400+30:1800+30"]

1. e4 {[%emt 0:00:30]} e5 {[%emt 0:00:57]} 2. Nf3 {[%emt 0:00:00]} Nc6 {[%emt 0:00:29]} 3. Bc4 {[%emt 0:00:00]} Bc5 {[%emt 0:00:10]} 4. c3 {[%emt 0:00:28]} Nf6 {[%emt 0:01:35]} 5. d3 {[%emt 0:00:03]} O-O {[%emt 0:00:22]} 6. O-O {[%emt 0:00:09]} d6 {[%emt 0:00:21]} 7. h3 {[%emt 0:00:18]} h6 {[%emt 0:00:07]} 8. Re1 {[%emt 0:01:03]} a5 {[%emt 0:00:13]} 9. Nbd2 {[%emt 0:01:20]} Bb6 {[%emt 0:01:53]} 10. Nf1 {[%emt 0:05:24]} Ne7 {[%emt 0:01:20]} 11. Ng3 {[%emt 0:05:28]} c6 {[%emt 0:01:39]} 12. d4 {[%emt 0:06:17]} Ng6 {[%emt 0:08:38]} 13. Bd3 {[%emt 0:10:27]} Bc7 {[%emt 0:08:26]} 14. a4 {[%emt 0:05:54]} Re8 {[%emt 0:24:45]} 15. Bc2 {[%emt 0:02:43]} d5 {[%emt 0:21:02]} 16. dxe5 {[%emt 0:22:30]} Nxe4 {[%emt 0:00:17]} 17. Nxe4 {[%emt 0:00:16]} dxe4 {[%emt 0:00:04]} 18. Qxd8 {[%emt 0:00:18]} Rxd8 {[%emt 0:00:25]} 19. Bxe4 {[%emt 0:00:50]} Nxe5 {[%emt 0:00:40]} 20. Nxe5 {[%emt 0:00:08]} Bxe5 {[%emt 0:00:06]} 21. Bxc6 {[%emt 0:03:11]} Bxc3 {[%emt 0:00:53]} 22. bxc3 {[%emt 0:05:41]} bxc6 {[%emt 0:00:02]} 23. Be3 {[%emt 0:03:12]} Bf5 {[%emt 0:02:54]} 24. Bb6 {[%emt 0:02:31]} Rdb8 {[%emt 0:02:30]} 25. Bc7 {[%emt 0:07:14]} Rb7 {[%emt 0:00:31]} 26. Re5 {[%emt 0:00:28]} Bc2 {[%emt 0:01:54]} 27. Rxa5 {[%emt 0:01:20]} Rxa5 {[%emt 0:00:07]} 28. Bxa5 {[%emt 0:00:03]} Ra7 {[%emt 0:00:08]} 29. Bb6 {[%emt 0:00:14]} Rxa4 {[%emt 0:00:10]} 30. Rxa4 {[%emt 0:00:12]} Bxa4 {[%emt 0:00:09]} 1/2-1/2

[Event "44th Chess Olympiad Open 2022"]
[Site "Chennai"]
[Date "2022.08.09"]
[Round "11.19"]
[White "Hansen, Eric"]
[Black "Quesada Perez, Yasser"]
[Result "1/2-1/2"]
[ECO "C42"]
[WhiteElo "2606"]
[BlackElo "2568"]
[Annotator "TA"]
[PlyCount "76"]
[EventDate "2022.07.29"]
[EventType "team-tourn"]
[EventCountry "IND"]
[SourceTitle "playchess.com"]
[Source "ChessBase"]
[SourceQuality "1"]
[WhiteTeam "Canada"]
[BlackTeam "Cuba"]
[WhiteTeamCountry "CAN"]
[BlackTeamCountry "CUB"]
[TimeControl "40/5400+30:1800+30"]

{[%evp 14,76,14,14,37,0,0,-4,-3,-1,9,-6,-4,-8,-9,-13,-16,-40,11,-12,-6,-4,0,-16,-14,-21,-11,-7,-4,-6,0,-1,4,0,5,-12,8,4,8,0,0,0,0,0,0,0,0,0,41,41,37,35,41,41,105,84,84,84,84,61,68,0,0,-25,-26]} 1. e4 {[%emt 0:01:03]} e5 {[%emt 0:00:05]} 2. Nf3 {[%emt 0:00:44]} Nf6 {[%emt 0:00:06]} 3. Nxe5 {[%emt 0:05:52]} d6 {[%emt 0:00:05]} 4. Nf3 {[%emt 0:00:07]} Nxe4 {[%emt 0:00:05]} 5. Qe2 {[%emt 0:07:16]} Qe7 {[%emt 0:00:07]} 6. d3 {[%emt 0:00:17]} Nf6 {[%emt 0:00:07]} 7. Nc3 {[%emt 0:00:30]} Qxe2+ {[%emt 0:15:16]} 8. Bxe2 {[%emt 0:01:26]} Bd7 {[%emt 0:00:17] 8...g6 gains popularity. C42: Petroff Defence: 3 Nxe5 and unusual White 3rd moves.} 9. h3 {[%emt 0:04:02]} g6 {[%emt 0:02:29]} 10. Nd4 {[%emt 0:15:15]} Nc6 {[%emt 0:06:27] The position is equal.} 11. Be3 {[%emt 0:07:30] [#]} O-O-O $146 {[%emt 0:08:54]} ({Predecessor:} 11... a6 12. Bf3 Bg7 13. Nxc6 Bxc6 14. Bxc6+ bxc6 15. g4 Kd7 16. Kd2 Rab8 17. Rab1 h5 18. g5 Nd5 19. Nxd5 cxd5 20. d4 Rhe8 21. f3 Re6 {½-½ (21) Selyanin,D-Yurchenko,N (2074) Kislovodsk 2011}) 12. O-O-O {[%emt 0:01:10]} Bg7 {[%emt 0:00:50]} 13. Rhe1 {[%emt 0:05:32]} Rde8 {[%emt 0:01:43]} 14. Bf1 {[%emt 0:05:24]} Ne7 {[%emt 0:09:22]} 15. Bd2 {[%emt 0:07:03] [#]} Nfd5 {[%emt 0:01:25]} ({Better is} 15... Ng4 $1 $15 16. hxg4 Bxd4) 16. Nxd5 {[%emt 0:00:25]} Nxd5 {[%emt 0:00:04]} 17. Nf3 {[%emt 0:00:30]} h6 {[%emt 0:02:25]} 18. d4 {[%emt 0:12:39]} b5 {[%emt 0:06:35]} 19. c3 {[%emt 0:00:35]} Bc6 {[%emt 0:00:53]} 20. Rxe8+ {[%emt 0:01:01]} Rxe8 {[%emt 0:00:05]} 21. Re1 {[%emt 0:00:05]} Rxe1+ {[%emt 0:03:53]} 22. Nxe1 {[%emt 0:00:07]} Kd7 {[%emt 0:00:11]} 23. Nc2 {[%emt 0:00:58]} f5 {[%emt 0:03:39]} 24. f3 {[%emt 0:00:54]} h5 {[%emt 0:01:40]} 25. b3 {[%emt 0:04:53]} Bf6 {[%emt 0:06:16]} 26. c4 {[%emt 0:00:23]} bxc4 {[%emt 0:00:04]} 27. bxc4 {[%emt 0:00:04]} Nb6 {[%emt 0:00:49]} 28. d5 {[%emt 0:10:28]} Bb7 {[%emt 0:00:39]} 29. Nb4 {[%emt 0:00:05] Prevents Ba6.} h4 {[%emt 0:10:00]} 30. Kc2 {[%emt 0:00:55]} g5 {[%emt 0:02:14]} 31. Bd3 {[%emt 0:05:20]} f4 {[%emt 0:00:04]} 32. Kb3 {[%emt 0:00:51]} Ke8 {[%emt 0:12:35]} 33. Nc6 {[%emt 0:01:34]} a6 {[%emt 0:00:27]} (33... Bxc6 $14 34. dxc6 Bd4) 34. Ba5 {[%emt 0:00:54]} Kf7 {[%emt 0:03:59]} 35. Bf5 {[%emt 0:00:52] White is more active.} Bxc6 {[%emt 0:00:19]} 36. dxc6 {[%emt 0:00:44] [#] Bxb6 is the strong threat.} Bd4 {[%emt 0:00:03]} 37. Bxb6 {[%emt 0:00:34]} ({White should try} 37. Be1 $14) 37... Bxb6 $11 {[%emt 0:00:06]} 38. Kc3 {[%emt 0:00:19]} Kf6 {[%emt 0:00:14] Weighted Error Value: White=0.09 (flawless) /Black=0.11 (very precise)} 1/2-1/2

[Event "44th Chess Olympiad Open 2022"]
[Site "Chennai"]
[Date "2022.08.09"]
[Round "11.19"]
[White "Albornoz Cabrera, Carlos Daniel"]
[Black "Panjwani, Raja"]
[Result "0-1"]
[ECO "C65"]
[WhiteElo "2566"]
[BlackElo "2450"]
[Annotator "RC"]
[PlyCount "48"]
[EventDate "2022.07.29"]
[EventType "team-tourn"]
[EventCountry "IND"]
[SourceTitle "playchess.com"]
[Source "ChessBase"]
[SourceQuality "1"]
[WhiteTeam "Cuba"]
[BlackTeam "Canada"]
[WhiteTeamCountry "CUB"]
[BlackTeamCountry "CAN"]
[TimeControl "40/5400+30:1800+30"]

1. e4 {[%emt 0:00:07]} e5 {[%emt 0:00:13]} 2. Nf3 {[%emt 0:00:05]} Nc6 {[%emt 0:00:08]} 3. Bb5 {[%emt 0:00:05]} Nf6 {[%emt 0:00:13]} 4. d3 {[%emt 0:00:06]} Bc5 {[%emt 0:00:26]} 5. c3 {[%emt 0:00:08]} d5 {[%emt 0:00:06]} 6. exd5 {[%emt 0:00:04]} Qxd5 {[%emt 0:00:09]} 7. Bc4 {[%emt 0:00:05]} Qd6 {[%emt 0:00:09]} 8. b4 {[%emt 0:07:11]} Bb6 {[%emt 0:00:11]} 9. Nbd2 {[%emt 0:10:15]} Bf5 {[%emt 0:00:22]} 10. a4 {[%emt 0:02:50]} Bxd3 {[%emt 0:05:40]} 11. a5 {[%emt 0:31:14]} Bxf2+ {[%emt 0:27:00]} 12. Kxf2 {[%emt 0:00:01]} O-O-O {[%emt 0:07:07]} 13. Bxd3 {[%emt 0:03:11]} Qxd3 {[%emt 0:04:36]} 14. Re1 {[%emt 0:07:29]} e4 {[%emt 0:02:48]} 15. Ng5 {[%emt 0:06:58]} Qxc3 {[%emt 0:14:02]} 16. Ra3 {[%emt 0:01:26]} Qd4+ {[%emt 0:00:30]} 17. Kf1 {[%emt 0:00:57]} Rd5 {[%emt 0:05:31]} 18. Nh3 {[%emt 0:01:35]} Rf5+ {[%emt 0:00:22]} 19. Ke2 {[%emt 0:00:10]} Nd5 {[%emt 0:13:08]} 20. Qb3 {[%emt 0:02:16]} e3 {[%emt 0:02:10]} 21. Nf3 {[%emt 0:01:54]} Qg4 {[%emt 0:00:07]} 22. Kf1 {[%emt 0:02:19]} Nd4 {[%emt 0:04:24]} 23. Qc4 {[%emt 0:00:51]} Rxf3+ {[%emt 0:00:32]} 24. Kg1 {[%emt 0:00:04]} Rxh3 {[%emt 0:01:03]} 0-1

[Event "44th Chess Olympiad Open 2022"]
[Site "Chennai"]
[Date "2022.08.09"]
[Round "11.19"]
[White "Ortiz Suarez, Isan Reynaldo"]
[Black "Preotu, Razvan"]
[Result "1-0"]
[ECO "A32"]
[WhiteElo "2526"]
[BlackElo "2445"]
[Annotator "RC"]
[PlyCount "203"]
[EventDate "2022.07.29"]
[EventType "team-tourn"]
[EventCountry "IND"]
[SourceTitle "playchess.com"]
[Source "ChessBase"]
[SourceQuality "1"]
[WhiteTeam "Cuba"]
[BlackTeam "Canada"]
[WhiteTeamCountry "CUB"]
[BlackTeamCountry "CAN"]
[TimeControl "40/5400+30:1800+30"]

1. Nf3 {[%emt 0:00:04]} Nf6 {[%emt 0:00:16]} 2. c4 {[%emt 0:00:13]} c5 {[%emt 0:00:21]} 3. d4 {[%emt 0:00:38]} cxd4 {[%emt 0:00:19]} 4. Nxd4 {[%emt 0:00:05]} e6 {[%emt 0:02:03]} 5. Nc3 {[%emt 0:02:01]} d5 {[%emt 0:00:44]} 6. cxd5 {[%emt 0:02:43]} Nxd5 {[%emt 0:00:24]} 7. Bd2 {[%emt 0:02:09]} Bc5 {[%emt 0:05:44]} 8. Nb3 {[%emt 0:02:56]} Be7 {[%emt 0:06:18]} 9. Nxd5 {[%emt 0:04:05]} Qxd5 {[%emt 0:01:04]} 10. Bc3 {[%emt 0:00:11]} Qxd1+ {[%emt 0:00:20]} 11. Rxd1 {[%emt 0:00:05]} Bf6 {[%emt 0:01:04]} 12. Bxf6 {[%emt 0:03:16]} gxf6 {[%emt 0:00:06]} 13. g3 {[%emt 0:00:03]} Bd7 {[%emt 0:04:16]} 14. Na5 {[%emt 0:29:25]} Bc6 {[%emt 0:02:33]} 15. f3 {[%emt 0:00:07]} f5 {[%emt 0:01:13]} 16. Bg2 {[%emt 0:01:23]} Bd5 {[%emt 0:19:48]} 17. e4 {[%emt 0:04:29]} fxe4 {[%emt 0:01:43]} 18. fxe4 {[%emt 0:00:05]} Bc6 {[%emt 0:00:18]} 19. O-O {[%emt 0:03:33]} Ke7 {[%emt 0:10:27]} 20. Rc1 {[%emt 0:06:56]} Nd7 {[%emt 0:01:12]} 21. Nxc6+ {[%emt 0:00:43]} bxc6 {[%emt 0:00:06]} 22. Rxc6 {[%emt 0:00:05]} Rhc8 {[%emt 0:03:24]} 23. Rfc1 {[%emt 0:02:13]} Rxc6 {[%emt 0:00:21]} 24. Rxc6 {[%emt 0:00:06]} Ne5 {[%emt 0:08:19]} 25. Rc7+ {[%emt 0:03:33]} Kf6 {[%emt 0:00:45]} 26. Kf2 {[%emt 0:04:44]} Rb8 {[%emt 0:06:06]} 27. b3 {[%emt 0:00:12]} a5 {[%emt 0:00:18]} 28. Bf3 {[%emt 0:04:38]} a4 {[%emt 0:05:03]} 29. Bd1 {[%emt 0:05:05]} axb3 {[%emt 0:00:08]} 30. axb3 {[%emt 0:00:45]} Ra8 {[%emt 0:02:05]} 31. Ke2 {[%emt 0:01:36]} Ra2+ {[%emt 0:13:01]} 32. Bc2 {[%emt 0:01:00]} Ra1 {[%emt 0:00:54]} 33. b4 {[%emt 0:04:33]} Rh1 {[%emt 0:00:06]} 34. h4 {[%emt 0:01:04]} Rh3 {[%emt 0:04:17]} 35. b5 {[%emt 0:10:09]} Rxg3 {[%emt 0:00:09]} 36. b6 {[%emt 0:00:06]} Rg8 {[%emt 0:01:11]} 37. b7 {[%emt 0:00:06]} Rb8 {[%emt 0:00:05]} 38. Ke3 {[%emt 0:01:43]} h6 {[%emt 0:01:28]} 39. Ba4 {[%emt 0:01:32]} Nc4+ {[%emt 0:00:23]} 40. Rxc4 {[%emt 0:00:41]} Rxb7 {[%emt 0:00:05]} 41. Kf4 {[%emt 0:30:13]} Ra7 {[%emt 0:02:31]} 42. Bd1 {[%emt 0:00:00]} Ra1 {[%emt 0:00:50]} 43. Bf3 {[%emt 0:00:00]} Ra7 {[%emt 0:00:39]} 44. Rc5 {[%emt 0:00:00]} Rd7 {[%emt 0:00:22]} 45. Ra5 {[%emt 0:00:00]} Rc7 {[%emt 0:00:06]} 46. Ra8 {[%emt 0:00:00]} Rd7 {[%emt 0:00:46]} 47. Rg8 {[%emt 0:00:00]} Rd4 {[%emt 0:01:47]} 48. Bh5 {[%emt 0:00:00]} Ra4 {[%emt 0:01:58]} 49. Rg1 {[%emt 0:00:00]} Ra5 {[%emt 0:00:37]} 50. Bf3 {[%emt 0:00:00]} Rc5 {[%emt 0:00:35]} 51. Rg8 {[%emt 0:00:00]} Ra5 {[%emt 0:00:14]} 52. Bd1 {[%emt 0:00:00]} Rc5 {[%emt 0:00:27]} 53. Rg2 {[%emt 0:00:00]} Ra5 {[%emt 0:00:17]} 54. Re2 {[%emt 0:00:00]} Rb5 {[%emt 0:02:22]} 55. Re3 {[%emt 0:00:00]} Rc5 {[%emt 0:00:36]} 56. Ra3 {[%emt 0:00:00]} Rc7 {[%emt 0:03:53]} 57. Kg4 {[%emt 0:00:00]} Kg6 {[%emt 0:01:06]} 58. Rg3 {[%emt 0:00:00]} Rc5 {[%emt 0:02:01]} 59. Ba4 {[%emt 0:00:00]} Kf6 {[%emt 0:02:18]} 60. Rg2 {[%emt 0:01:35]} Ra5 {[%emt 0:01:34]} 61. Rf2+ {[%emt 0:01:41]} Ke7 {[%emt 0:01:13]} 62. Bd1 {[%emt 0:00:58]} Re5 {[%emt 0:03:34]} 63. Bf3 {[%emt 0:02:29]} Ra5 {[%emt 0:02:18]} 64. Rb2 {[%emt 0:00:18]} Kf6 {[%emt 0:01:11]} 65. Rb7 {[%emt 0:00:29]} Kg7 {[%emt 0:01:26]} 66. Be2 {[%emt 0:00:48]} Ra2 {[%emt 0:01:15]} 67. Bc4 {[%emt 0:01:10]} Ra4 {[%emt 0:01:19]} 68. Rc7 {[%emt 0:00:07]} Kg6 {[%emt 0:00:14]} 69. Kf4 {[%emt 0:00:11]} Kf6 {[%emt 0:00:33]} 70. Bb5 {[%emt 0:00:19]} Ra1 {[%emt 0:01:19]} 71. Be8 {[%emt 0:01:28]} Rf1+ {[%emt 0:00:10]} 72. Kg4 {[%emt 0:01:00]} Kg6 {[%emt 0:00:54]} 73. Re7 {[%emt 0:00:03]} h5+ {[%emt 0:00:59]} 74. Kg3 {[%emt 0:00:03]} Kg7 {[%emt 0:00:12]} 75. Ra7 {[%emt 0:00:38]} Kg6 {[%emt 0:00:33]} 76. Ra5 {[%emt 0:01:55]} Rg1+ {[%emt 0:02:00]} 77. Kf4 {[%emt 0:00:06]} Rf1+ {[%emt 0:02:23]} 78. Ke5 {[%emt 0:00:08]} Kg7 {[%emt 0:00:55]} 79. Ra7 {[%emt 0:01:30]} Kf8 {[%emt 0:00:21]} 80. Bb5 {[%emt 0:00:13]} Rf2 {[%emt 0:00:16]} 81. Bc4 {[%emt 0:00:19]} Rh2 {[%emt 0:00:37]} 82. Kf6 {[%emt 0:00:19]} Rf2+ {[%emt 0:00:13]} 83. Kg5 {[%emt 0:00:04]} Rc2 {[%emt 0:00:32]} 84. Rc7 {[%emt 0:00:22]} Rg2+ {[%emt 0:02:44]} 85. Kxh5 {[%emt 0:00:29]} Rg3 {[%emt 0:00:18]} 86. Bb5 {[%emt 0:01:08]} Re3 {[%emt 0:00:33]} 87. Rc4 {[%emt 0:00:54]} Rg3 {[%emt 0:00:07]} 88. Rc5 {[%emt 0:00:05]} Ke7 {[%emt 0:00:54]} 89. Rg5 {[%emt 0:00:16]} Re3 {[%emt 0:00:06]} 90. e5 {[%emt 0:02:05]} Re4 {[%emt 0:00:20]} 91. Bd3 {[%emt 0:00:33]} Rd4 {[%emt 0:00:42]} 92. Be2 {[%emt 0:00:11]} Rd2 {[%emt 0:00:35]} 93. Bf3 {[%emt 0:00:44]} Rd3 {[%emt 0:00:53]} 94. Kg4 {[%emt 0:00:10]} Rd4+ {[%emt 0:01:40]} 95. Kg3 {[%emt 0:00:04]} Rd8 {[%emt 0:00:12]} 96. h5 {[%emt 0:00:07]} Rh8 {[%emt 0:00:05]} 97. Kf4 {[%emt 0:00:11]} Kf8 {[%emt 0:00:30]} 98. Rg1 {[%emt 0:00:20]} Rh7 {[%emt 0:00:26]} 99. Ra1 {[%emt 0:00:29]} Kg7 {[%emt 0:00:27]} 100. Kg5 {[%emt 0:00:21]} Rh6 {[%emt 0:00:40]} 101. Ra7 {[%emt 0:00:22]} Rh8 {[%emt 0:00:38]} 102. Be4 {[%emt 0:00:08]} 1-0

[Event "44th Chess Olympiad Open 2022"]
[Site "Chennai"]
[Date "2022.08.09"]
[Round "11.19"]
[White "Noritsyn, Nikolay"]
[Black "Quesada Perez, Luis Ernesto"]
[Result "0-1"]
[ECO "B90"]
[WhiteElo "2482"]
[BlackElo "2549"]
[Annotator "RC"]
[PlyCount "100"]
[EventDate "2022.07.29"]
[EventType "team-tourn"]
[EventCountry "IND"]
[SourceTitle "playchess.com"]
[Source "ChessBase"]
[SourceQuality "1"]
[WhiteTeam "Canada"]
[BlackTeam "Cuba"]
[WhiteTeamCountry "CAN"]
[BlackTeamCountry "CUB"]
[TimeControl "40/5400+30:1800+30"]

1. e4 {[%emt 0:00:04]} c5 {[%emt 0:00:20]} 2. Nf3 {[%emt 0:00:08]} d6 {[%emt 0:00:10]} 3. d4 {[%emt 0:00:13]} cxd4 {[%emt 0:00:06]} 4. Nxd4 {[%emt 0:00:04]} Nf6 {[%emt 0:00:06]} 5. Nc3 {[%emt 0:00:12]} a6 {[%emt 0:00:23]} 6. Nb3 {[%emt 0:00:16]} Nbd7 {[%emt 0:01:08]} 7. a4 {[%emt 0:00:28]} b6 {[%emt 0:00:57]} 8. g4 {[%emt 0:00:37]} h6 {[%emt 0:00:25]} 9. Bg2 {[%emt 0:00:56]} g5 {[%emt 0:08:33]} 10. f4 {[%emt 0:11:06]} gxf4 {[%emt 0:00:49]} 11. Bxf4 {[%emt 0:00:05]} Ne5 {[%emt 0:00:33]} 12. h3 {[%emt 0:00:26]} Bb7 {[%emt 0:02:00]} 13. a5 {[%emt 0:18:45]} Ng6 {[%emt 0:13:56]} 14. Be3 {[%emt 0:07:57]} b5 {[%emt 0:04:21]} 15. O-O {[%emt 0:03:48]} Nd7 {[%emt 0:01:59]} 16. Nd5 {[%emt 0:04:02]} e6 {[%emt 0:14:59]} 17. Nb6 {[%emt 0:06:24]} Rb8 {[%emt 0:02:13]} 18. Qe2 {[%emt 0:06:21]} Nde5 {[%emt 0:02:55]} 19. Rad1 {[%emt 0:09:06]} Be7 {[%emt 0:03:26]} 20. c4 {[%emt 0:04:40]} bxc4 {[%emt 0:03:13]} 21. Nd2 {[%emt 0:04:43]} Bc6 {[%emt 0:03:16]} 22. Ndxc4 {[%emt 0:00:38]} Nxc4 {[%emt 0:00:57]} 23. Nxc4 {[%emt 0:00:08]} Bb5 {[%emt 0:01:28]} 24. b3 {[%emt 0:01:58]} Ne5 {[%emt 0:05:59]} 25. Bd4 {[%emt 0:01:36]} Bxc4 {[%emt 0:00:53]} 26. bxc4 {[%emt 0:00:07]} Qxa5 {[%emt 0:02:01]} 27. c5 {[%emt 0:07:38]} O-O {[%emt 0:00:36]} 28. cxd6 {[%emt 0:01:03]} Bxd6 {[%emt 0:00:32]} 29. Qe3 {[%emt 0:00:46]} Ng6 {[%emt 0:13:14]} 30. Qxh6 {[%emt 0:00:27]} Be5 {[%emt 0:00:06]} 31. Kh1 {[%emt 0:04:15]} Bxd4 {[%emt 0:00:11]} 32. Rxd4 {[%emt 0:00:01]} Rb2 {[%emt 0:04:49]} 33. Rd3 {[%emt 0:00:45]} Qe5 {[%emt 0:03:50]} 34. Rdf3 {[%emt 0:02:01]} Qg7 {[%emt 0:01:57]} 35. Qe3 {[%emt 0:03:48]} a5 {[%emt 0:00:58]} 36. R3f2 {[%emt 0:01:47]} a4 {[%emt 0:00:21]} 37. e5 {[%emt 0:00:49]} Rxf2 {[%emt 0:01:26]} 38. Rxf2 {[%emt 0:00:03]} Rb8 {[%emt 0:03:49]} 39. Qa3 {[%emt 0:00:51]} Qxe5 {[%emt 0:00:34]} 40. Qxa4 {[%emt 0:00:34]} Qg3 {[%emt 0:00:28]} 41. Qc2 {[%emt 0:13:39]} Nf4 {[%emt 0:05:28]} 42. Rf1 {[%emt 0:04:07]} Nxh3 {[%emt 0:01:15]} 43. Rf3 {[%emt 0:13:18]} Qe1+ {[%emt 0:00:37]} 44. Bf1 {[%emt 0:00:50]} Ng5 {[%emt 0:01:24]} 45. Rf4 {[%emt 0:00:44]} Qe5 {[%emt 0:03:42]} 46. Rf2 {[%emt 0:00:29]} Kg7 {[%emt 0:01:43]} 47. Bg2 {[%emt 0:00:33]} Qg3 {[%emt 0:00:35]} 48. Re2 {[%emt 0:00:41]} Rh8+ {[%emt 0:00:15]} 49. Kg1 {[%emt 0:00:04]} Nf3+ {[%emt 0:00:12]} 50. Kf1 {[%emt 0:00:05]} Rh1+ {[%emt 0:00:06]} 0-1